Cogmind - Beta 13 X1 @@@ ROGUE MODE // 2023.09.21 @ 14:23:33 Player: DuckBoy Result: Destroyed by Y-54 Guardian with Flak Gun Performance ------------- Evolutions (3) 1500 Regions Visited (9) 1800 Robots Destroyed (135) 675 Value Destroyed (4667) 4667 Prototype IDs (28) 560 Alien Tech Used (0) 0 Bonus (1536) 1536 TOTAL SCORE: 10738 Bonus ------- High Alert Combat Kills 452 Follower Combat Kills 295 Entered Garrisons 400 Used RIF Installer 500 Friendly Fire -111 Cogmind --------- Core Integrity 0/700 Matter 144/300 Energy 100/100 System Corruption 2% Temperature Cool (55) Movement Core (900) Ox17 Location -7/Garrison Parts ------- > --- POWER (1) -------- (None) > --- PROPULSION (3) --- (None) > --- UTILITY (6) ------ Improved Heat Sink High-capacity Storage Unit Machine Analyzer Transmission Jammer Hacking Suite > --- WEAPON (3) ------- Shock Rifle Advanced Beam Rifle Heavy Rocket Launcher > --- INVENTORY (20) --- Improved Deuterium Engine Coolant Injector Large Storage Unit Huge Storage Unit Structural Scanner Transmission Jammer Transmission Jammer Transmission Jammer Hacking Suite Makeshift Hacking Suite Makeshift System Restoration Module Shock Rifle Assault Rifle Flak Gun Heavy Assault Cannon Remote Datajack Remote Datajack Peak State ------------ > --- POWER ------------ Improved Deuterium Engine > --- PROPULSION ------- Light Treads Armored Treads Armored Treads > --- UTILITY ---------- Advanced Heat Sink Improved Cooling System High-capacity Storage Unit Advanced Targeting Computer Hacking Suite Makeshift System Restoration Module > --- WEAPON ----------- Heavy Laser Plasma Cannon Plasma Cannon > --- INVENTORY -------- Reinforced Deuterium Engine Armored Treads Armored Treads Huge Storage Unit Structural Scanner Transmission Jammer Transmission Jammer Transmission Jammer Transmission Jammer Transmission Jammer Transmission Jammer Makeshift Hacking Suite Relay Coupler [Brawler] Lightning Gun Plasma Cannon Heavy Assault Cannon Remote Datajack [Rating: 49] Favorites ----------- Power Ion Engine Engine Ion Engine Power Core Micro Nuclear Core Propulsion Light Treads Treads Light Treads Wheel Wheel Utility High-capacity Storage Unit Device Advanced Heat Sink Storage High-capacity Storage Unit Processor Advanced Targeting Computer Hackware Hacking Suite Protection Propulsion Shielding Weapon Enhanced Autogun Energy Gun Medium Laser Energy Cannon Plasma Cannon Ballistic Gun Enhanced Autogun Launcher Heavy Rocket Launcher Special Weapon Remote Datajack Build | -11 -10 -10 -10 -9 -8 -7 -7 -7 -7 ------- Run | Jun Mat Min Exi Min Mat Fac Gar Fac Gar Slots Evolved 6 | . . . . . 4 2 . . . Power . | . . . . . . . . . . Propulsion 1 | . . . . . 1 . . . . Utility 4 | . . . . . 2 2 . . . Weapon 1 | . . . . . 1 . . . . Parts Attached 114 | 7 6 . . . 17 29 5 46 4 Power 14 | 2 1 . . . 1 5 . 5 . Engine 13 | 2 1 . . . 1 4 . 5 . Core 1 | . . . . . . 1 . . . Reactor . | . . . . . . . . . . Propulsion 27 | 2 2 . . . 5 6 2 10 . Treads 24 | 2 2 . . . 5 6 2 7 . Leg . | . . . . . . . . . . Wheel 3 | . . . . . . . . 3 . Hover . | . . . . . . . . . . Flight . | . . . . . . . . . . Utility 35 | 1 3 . . . 6 10 . 15 . Device 21 | . . . . . 3 8 . 10 . Storage 5 | 1 2 . . . . . . 2 . Processor 4 | . 1 . . . 2 . . 1 . Hackware 4 | . . . . . . 2 . 2 . Protection 1 | . . . . . 1 . . . . Artifact . | . . . . . . . . . . Weapon 38 | 2 . . . . 5 8 3 16 4 Energy Gun 21 | 1 . . . . 3 6 3 6 2 Energy Cannon 3 | . . . . . . . . 3 . Ballistic Gun 9 | 1 . . . . 2 2 . 4 . Ballistic Cannon . | . . . . . . . . . . Launcher 2 | . . . . . . . . . 2 Special Weapon 3 | . . . . . . . . 3 . Impact Weapon . | . . . . . . . . . . Slashing Weapon . | . . . . . . . . . . Piercing Weapon . | . . . . . . . . . . Special Melee Weapon . | . . . . . . . . . . Unidentified Prototypes 5 | . . . . . 4 . . 1 . Corrupted Parts 3 | . . . . . . . . 3 . System Corruption 13 | . . . . . . . . 13 . Parts Lost 39 | . 1 . . . 1 9 2 21 5 Power 6 | . 1 . . . 1 1 . 2 1 Propulsion 14 | . . . . . . 3 2 6 3 Utility 6 | . . . . . . 1 . 5 . Weapon 13 | . . . . . . 4 . 8 1 Highest Loss Streak 9 | . 1 . . . 1 7 1 9 5 To Critical Strikes . | . . . . . . . . . . Average Slot Usage (%) 97 | . 98 100 100 100 95 99 99 95 92 Engine 9 | . 13 14 14 14 8 6 7 6 7 Treads 22 | . 28 28 28 28 27 22 22 16 . Wheel 2 | . . . . . . . . 5 19 Device 10 | . . . . . 11 8 15 16 19 Storage 9 | . 14 14 14 14 9 7 7 7 7 Processor 10 | . 13 14 14 14 11 13 7 6 7 Hackware 7 | . . . . . . 15 15 12 7 Energy Gun 11 | . 14 14 14 14 16 13 7 6 7 Energy Cannon 2 | . . . . . . . . 6 . Ballistic Gun 10 | . 14 14 14 14 9 8 15 7 9 Naked Turns . | . . . . . . . . . . Heaviest Build 76 | 14 49 49 49 49 58 61 60 76 75 Greatest Support 60 | 40 40 40 40 40 60 60 60 60 30 Greatest Overweight (x) 6 | . 1 1 1 1 . 1 . 4 6 Average Overweight (x) . | . . 1 1 1 . . . . 2 Largest Inventory Capacity 20 | 8 20 20 20 20 20 20 20 20 20 Average Capacity 18 | 6 10 20 20 20 20 20 20 18 20 Most Carried 20 | 4 11 13 17 17 20 20 18 20 19 Average Carried 15 | 1 8 12 15 17 19 18 16 15 18 Final Capacity 20 | 8 20 20 20 20 20 20 20 20 20 Final Carried 20 | 4 11 13 17 17 20 18 17 18 18 Class Distribution -------------------- 43% | Scavenger-Gunner 24% | Mutant 9% | Scavenger-Skirmisher 6% | Commander-Mutant 6% | Hacker-Gunner 6% | Scavenger-Mutant Dominant Class ---------------- Mutant | -10/Materials Mutant | -10/Mines Mutant | -10/Exiles Commander-Mutant | -9/Mines Scavenger-Gunner | -8/Materials Scavenger-Gunner | -7/Factory Hacker-Gunner | -7/Garrison Scavenger-Gunner | -7/Factory Scavenger-Mutant | -7/Garrison Resources | -11 -10 -10 -10 -9 -8 -7 -7 -7 -7 ----------- Run | Jun Mat Min Exi Min Mat Fac Gar Fac Gar Matter Collected 2496 | 256 191 9 15 . 451 400 284 890 . Remotely . | . . . . . . . . . . Salvage Created 5444 | . 327 37 43 4 1533 840 543 1953 164 Parts 293 | . 20 3 1 4 67 49 31 111 7 Haulers Intercepted 7 | . . . . . 5 . . 2 . Recyclers Shooed 2 | . 1 . . . . . . 1 . Parts Field Recycled . | . . . . . . . . . . Retrieved Matter . | . . . . . . . . . . Parts Self-Destructed . | . . . . . . . . . . Prevented . | . . . . . . . . . . Kills | -11 -10 -10 -10 -9 -8 -7 -7 -7 -7 ------- Run | Jun Mat Min Exi Min Mat Fac Gar Fac Gar Combat Hostiles Destroyed 100 | . 9 2 . . 24 13 15 30 7 Guns 80 | . 9 2 . . 24 11 15 19 . Cannons 8 | . . . . . . . . 8 . AOE 8 | . . . . . . . . 1 7 Classes Destroyed 16 | . 4 . . 1 5 2 . 4 . Worker 5 | . . . . 1 . . . 4 . Builder 5 | . . . . . 1 1 . 3 . Tunneler 3 | . . . . . 1 . . 2 . Hauler 7 | . . . . . 5 . . 2 . Recycler 4 | . . . . . 2 1 . 1 . Mechanic 1 | . . . . . . . . 1 . Operator 3 | . 1 . . . . 1 . 1 . Watcher 7 | . 1 . . . 2 1 . 3 . Swarmer 33 | . 3 2 . . 6 3 10 5 4 Grunt 39 | . 6 . . . 12 4 5 10 2 Duelist 1 | . . . . . . . . 1 . Protector 1 | . . . . . . . . 1 . Sentry 14 | . . . . . 6 4 . 3 1 Hunter 5 | . . . . . . 1 . 4 . Programmer 6 | . . . . . . . . 6 . Heavy 1 | . . . . . . 1 . . . Best Kill Streak 7 | . 3 2 . 1 7 4 5 5 4 Combat Bots Only 6 | . 2 2 . . 6 4 5 4 4 Max Kills in Single Turn 4 | . 1 1 . 1 2 2 1 2 4 Gunslinging 1 | . . . . . . 1 . . . Exploded 4 | . . . . . . . . 1 4 Melee . | . . . . . . . . . . Uniques/NPCs Destroyed . | . . . . . . . . . . Combat | -11 -10 -10 -10 -9 -8 -7 -7 -7 -7 -------- Run | Jun Mat Min Exi Min Mat Fac Gar Fac Gar Damage Taken 6206 | . 499 18 . . 573 1143 378 3070 525 Core 827 | . 97 . . . 27 101 30 465 107 Absorbed by Shields . | . . . . . . . . . . Core Remaining (%) 85 | 100 . . . 61 95 . . . . Volleys Fired 364 | . 43 3 5 . 67 40 41 135 30 Largest 3 | . 2 2 2 . 3 3 3 3 3 Hottest 229 | . 70 70 70 . 141 165 119 229 139 Shots Fired 867 | . 86 6 10 . 198 104 101 321 41 Gun 732 | . 86 6 10 . 198 104 101 194 33 Cannon 119 | . . . . . . . . 119 . Launcher 8 | . . . . . . . . . 8 Special 8 | . . . . . . . . 8 . Kinetic 334 | . 43 3 5 . 84 38 60 96 5 Thermal 478 | . 43 3 5 . 114 46 31 212 24 Explosive 8 | . . . . . . . . . 8 Electromagnetic 39 | . . . . . . 20 10 5 4 Robot Hit Streak 21 | . 11 1 4 . 21 17 10 15 5 Robot Miss Streak 7 | . 3 2 1 . 3 3 3 7 2 Penetration Max 1 | . . . . . . . . . 1 Secondary Targets 8 | . 1 1 . . 2 1 1 2 . Max Gunslinging Chain 1 | . 1 1 . . 1 1 1 1 . Shots Hit Robots 543 | . 63 2 8 . 131 77 48 203 11 Core Hits 247 | . 20 2 2 . 59 34 24 93 13 Critical Kills 1 | . . . . . . . . 1 . Critical Parts Destroyed . | . . . . . . . . . . Critical Strikes 14 | . 2 . . . 6 2 . 3 1 Burn 12 | . 2 . . . 6 1 . 2 1 Meltdown 1 | . . . . . . . . 1 . Corrupt 1 | . . . . . . 1 . . . Melee Attacks . | . . . . . . . . . . Impact . | . . . . . . . . . . Slashing . | . . . . . . . . . . Piercing . | . . . . . . . . . . Sneak Attacks . | . . . . . . . . . . Combat Hostiles . | . . . . . . . . . . Follow-up Attacks . | . . . . . . . . . . Damage Inflicted 10534 | . 804 41 126 1 2202 1389 879 4348 744 Guns 7995 | . 801 41 126 . 2172 1389 879 2337 250 Cannons 1832 | . . . . . . . . 1832 . Explosions 662 | . . . . . . . . 168 494 Melee . | . . . . . . . . . . Ramming 45 | . 3 . . 1 30 . . 11 . Kinetic 3256 | . 388 15 64 . 824 402 450 1013 100 Thermal 6086 | . 413 26 62 . 1348 678 395 3064 100 Explosive 494 | . . . . . . . . . 494 Electromagnetic 653 | . . . . . . 309 34 260 50 Impact . | . . . . . . . . . . Slashing . | . . . . . . . . . . Piercing . | . . . . . . . . . . Highest Corruption 9 | . . . . . . . . 9 4 Average Corruption 5 | . . . . . . . . 6 2 Corruption Purged 19 | . . . . . . . . 17 2 Corruption Blocked . | . . . . . . . . . . Effects 74 | . . . . . . . . 73 1 Message Errors 19 | . . . . . . . . 19 . Matter Fused 17 | . . . . . . . . 16 1 Heat Flow Errors 8 | . . . . . . . . 8 . Energy Discharges 10 | . . . . . . . . 10 . Data Loss (minor) 5 | . . . . . . . . 5 . Data Loss (major) 4 | . . . . . . . . 4 . Misfires 3 | . . . . . . . . 3 . Alerts 1 | . . . . . . . . 1 . Weapon Failures 7 | . . . . . . . . 7 . Overload Shots . | . . . . . . . . . . Overflow Damage 50 | . . . . . . . . 22 28 Projectiles 22 | . . . . . . . . 22 . Explosions 28 | . . . . . . . . . 28 Melee . | . . . . . . . . . . Knockbacks 1 | . . . . . 1 . . . . Impact 1 | . . . . . 1 . . . . Kinetic . | . . . . . . . . . . Secondary . | . . . . . . . . . . Self-Inflicted Damage 38 | . . . . . . . . . 38 Shots 2 | . . . . . . . . . 2 Rammed 8 | . 2 . . . 5 . . 1 . Targets Rammed 10 | . 2 . . 1 5 . . 2 . Kicked . | . . . . . . . . . . Crushed 2 | . . . . 1 . . . 1 . Highest Temperature 252 | . 195 18 45 . 220 241 39 252 113 Average Temperature 49 | . 56 9 23 . 45 61 13 54 56 Received Heat Transfer 1527 | . 249 . . . 246 240 72 561 159 Effects 1 | . . . . . . 1 . . . Interference 1 | . . . . . . 1 . . . Siege Activations . | . . . . . . . . . . Robots Corrupted 2 | . . . . . . 1 . 1 . Combat Hostiles 2 | . . . . . . 1 . 1 . Parts Fried 10 | . . . . . . 5 . 5 . Impact Corruptions . | . . . . . . . . . . Robots Melted 4 | . . . . . 1 1 . 2 . Combat Hostiles 2 | . . . . . . 1 . 1 . Parts Melted 27 | . . . . . 8 5 . 14 . Heat Transferred 13024 | . 1369 74 148 . 3552 1443 740 5439 259 Parts Sabotaged . | . . . . . . . . . . Parts Stolen . | . . . . . . . . . . Parts Stripped . | . . . . . . . . . . Power Chain Reactions 4 | . . . . . . . . 4 . Missiles Intercepted . | . . . . . . . . . . Alert | -11 -10 -10 -10 -9 -8 -7 -7 -7 -7 ------- Run | Jun Mat Min Exi Min Mat Fac Gar Fac Gar Peak Influence 907 | . 165 85 . 6 478 389 661 907 873 Initial 627 | . . 35 . . 1 217 249 346 627 Average 344 | . 71 42 . 4 256 261 388 490 671 Maximum Alert Level 3 | . . . . . 2 1 2 3 3 Low Security (%) 23 | 100 100 100 . 100 37 9 . . . Level 1 36 | . . . . . 38 90 59 29 . Level 2 32 | . . . . . 23 . 40 55 80 Level 3 6 | . . . . . . . . 15 19 Level 4 . | . . . . . . . . . . Level 5 . | . . . . . . . . . . High Security . | . . . . . . . . . . Max Security . | . . . . . . . . . . Squads Dispatched 24 | . 1 . . . 3 2 . 18 . Investigation 4 | . . . . . 2 . . 2 . Extermination 7 | . . . . . . 1 . 6 . Reinforcement 5 | . 1 . . . 1 1 . 2 . Assault 1 | . . . . . . . . 1 . Garrison 7 | . . . . . . . . 7 . Intercept . | . . . . . . . . . . Searches Triggered . | . . . . . . . . . . Construction Impeded . | . . . . . . . . . . Haulers Reinforced . | . . . . . . . . . . Active Scanning Responses . | . . . . . . . . . . Cargo Convoy Interrupts 1 | . . . . . . . . 1 . Stealth | -11 -10 -10 -10 -9 -8 -7 -7 -7 -7 --------- Run | Jun Mat Min Exi Min Mat Fac Gar Fac Gar Distress Signals 4 | . 1 . . . 2 . . 1 . Communications Jammed 60 | . . . . . . . . 60 . Distress Signals 60 | . . . . . . . . 60 . Times Spotted 141 | . 13 3 . . 34 21 14 46 10 Peak Tracking Total 7 | . 3 3 . . 7 3 3 5 5 Tactical Retreats 6 | . . . . . 3 2 . . 1 Traps | -11 -10 -10 -10 -9 -8 -7 -7 -7 -7 ------- Run | Jun Mat Min Exi Min Mat Fac Gar Fac Gar Traps Triggered 9 | . . . . . . . 2 6 1 Indirectly . | . . . . . . . . . . Trap Hack Attempts . | . . . . . . . . . . Triggered . | . . . . . . . . . . Disarmed . | . . . . . . . . . . Reprogrammed 2 | . . . . . 2 . . . . Reused . | . . . . . . . . . . Traps Extracted . | . . . . . . . . . . Installed . | . . . . . . . . . . Triggered 5 | . . . . . . . . 5 . Machines | -11 -10 -10 -10 -9 -8 -7 -7 -7 -7 ---------- Run | Jun Mat Min Exi Min Mat Fac Gar Fac Gar Machines Disabled 16 | . . . . . 1 . 2 12 1 Max in Single Turn 4 | . . . . . . . 1 4 1 Garrison Access 1 | . . . . . . . . 1 . Garrison Relay 1 | . . . . . . . 1 . . Machines Repaired . | . . . . . . . . . . Machines Sabotaged . | . . . . . . . . . . Overloaded Fab Kills . | . . . . . . . . . . Hacking | -11 -10 -10 -10 -9 -8 -7 -7 -7 -7 --------- Run | Jun Mat Min Exi Min Mat Fac Gar Fac Gar Machines Accessed 33 | . 4 . 2 . 7 9 1 10 . Terminals 21 | . 4 . . . 6 8 1 2 . Fabricators 1 | . . . . . . . . 1 . Repair Stations 2 | . . . . . . . . 2 . Recycling Units 3 | . . . . . . . . 3 . Scanalyzers 2 | . . . . . 1 . . 1 . Garrison Access 2 | . . . . . . 1 . 1 . Total Hacks 94 | . 11 . 2 . 20 26 1 34 . Successful 48 | . 3 . 2 . 10 10 1 22 . Failed 45 | . 7 . . . 10 16 . 12 . Catastrophic 9 | . 2 . . . 2 2 . 3 . Database Lockouts 1 | . 1 . . . . . . . . Manual 58 | . 11 . 1 . 11 13 . 22 . Terminals 58 | . 11 . . . 17 24 1 5 . Fabricators 2 | . . . . . . . . 2 . Repair Stations 5 | . . . . . . . . 5 . Recycling Units 11 | . . . . . . . . 11 . Scanalyzers 9 | . . . . . 3 . . 6 . Garrison Access 7 | . . . . . . 2 . 5 . Terminal Hacks 13 | . 1 . 2 . 4 5 1 . . Record 1 | . . . 1 . . . . . . Part Schematic 1 | . . . . . . 1 . . . Robot Schematic 1 | . 1 . . . . . . . . Robot Analysis 1 | . . . . . . 1 . . . Branch Access Points 1 | . . . . . 1 . . . . Emergency Access Points 1 | . . . . . . . 1 . . Terminal Index 1 | . . . . . . 1 . . . Garrison Index 1 | . . . . . 1 . . . . Alert Level 1 | . . . . . . 1 . . . Unreport Threat 1 | . . . . . 1 . . . . Reprogram Traps 1 | . . . . . 1 . . . . Recall Extermination 1 | . . . . . . 1 . . . Derelict Proto ID Bank 1 | . . . 1 . . . . . . Fabricator Hacks . | . . . . . . . . . . Repair Station Hacks 1 | . . . . . . . . 1 . Scan Component 1 | . . . . . . . . 1 . Recycling Unit Hacks . | . . . . . . . . . . Scanalyzer 8 | . . . . . 2 . . 6 . Insert Component 4 | . . . . . 1 . . 3 . Analyze 4 | . . . . . 1 . . 3 . Garrison Access Hacks 4 | . . . . . . 2 . 2 . Unlock Access 2 | . . . . . . 1 . 1 . Coupler Status 2 | . . . . . . 1 . 1 . Unauthorized Hacks 22 | . 2 . . . 4 3 . 13 . Terminals 10 | . 2 . . . 4 3 . 1 . Botnet 8 | . 1 . . . 3 3 . 1 . Operators 2 | . 1 . . . 1 . . . . Fabricators 2 | . . . . . . . . 2 . Liberate 1 | . . . . . . . . 1 . Haulers 1 | . . . . . . . . 1 . Repair Stations 1 | . . . . . . . . 1 . Mechanics 1 | . . . . . . . . 1 . Recycling Units 8 | . . . . . . . . 8 . Monitor 1 | . . . . . . . . 1 . Reject 3 | . . . . . . . . 3 . Recyclers 1 | . . . . . . . . 1 . Mask 3 | . . . . . . . . 3 . Scanalyzers . | . . . . . . . . . . Garrison Access 1 | . . . . . . . . 1 . Eject 1 | . . . . . . . . 1 . Data Cores Recovered 1 | . . . . . . 1 . . . Used . | . . . . . . . . . . Hacking Detections 27 | . 4 . . . 7 7 1 8 . Full Trace Events 3 | . . . . . 2 . . 1 . Feedback Events . | . . . . . . . . . . Feedback Blocked . | . . . . . . . . . . Robot Schematics Acquired 1 | . 1 . . . . . . . . Robots Built . | . . . . . . . . . . Authchips . | . . . . . . . . . . Time . | . . . . . . . . . . Total Robot Build Rating . | . . . . . . . . . . Part Schematics Acquired 5 | . . . . . 1 1 . 3 . Parts Built . | . . . . . . . . . . Authchips . | . . . . . . . . . . Time . | . . . . . . . . . . Total Part Build Rating . | . . . . . . . . . . Parts Repaired . | . . . . . . . . . . Time . | . . . . . . . . . . Parts Recycled . | . . . . . . . . . . Recycled Matter . | . . . . . . . . . . Retrieved Matter . | . . . . . . . . . . Retrieved Components . | . . . . . . . . . . Parts Scanalyzed 4 | . . . . . 1 . . 3 . Part Schematics Acquired 4 | . . . . . 1 . . 3 . Parts Damaged . | . . . . . . . . . . Bothacking | -11 -10 -10 -10 -9 -8 -7 -7 -7 -7 ------------ Run | Jun Mat Min Exi Min Mat Fac Gar Fac Gar Used RIF Installer 1 | . . . . . . . 1 . . Robots Hacked 3 | . . . . . . . . 3 . Non-combat 1 | . . . . . . . . 1 . Combat 2 | . . . . . . . . 2 . Robot Hacks Applied 4 | . . . . . . . . 4 . no_distress 1 | . . . . . . . . 1 . find_garrison 1 | . . . . . . . . 1 . formatsys_high 2 | . . . . . . . . 2 . Relay Couplers Released 9 | . . . . . . . 5 4 . Ejected 3 | . . . . . . . . 3 . Machine Destruction 6 | . . . . . . . 5 1 . Attached 2 | . . . . . . . . 2 . Fabnet Peak Effective % . | . . . . . . . . . . Robots Rewired 5 | . . . 5 . . . . . . Allies Hacked . | . . . . . . . . . . Hacks Repelled . | . . . . . . . . . . Allies | -11 -10 -10 -10 -9 -8 -7 -7 -7 -7 -------- Run | Jun Mat Min Exi Min Mat Fac Gar Fac Gar Total Allies 10 | . . . 5 . . . . 5 . Largest Group 5 | . . . 5 5 5 . . 3 . Highest-Rated Group 93 | . . . 53 53 53 . . 93 . Highest-Rated Ally 32 | . . . 21 21 21 . . 32 . Total Orders 6 | . . . . . . 2 . 4 . STAY 2 | . . . . . . . . 2 . FOLLOW 1 | . . . . . . . . 1 . EXPLORE 3 | . . . . . . 2 . 1 . Ally Attacks 69 | . . . . . 32 . . 37 . Total Damage 1148 | . . . . . 397 . . 751 . Kills 11 | . . . . . 4 . . 7 . Allies Corrupted 2 | . . . . . . . . 2 . Allies Melted . | . . . . . . . . . . Intel | -11 -10 -10 -10 -9 -8 -7 -7 -7 -7 ------- Run | Jun Mat Min Exi Min Mat Fac Gar Fac Gar Robot Analysis Total 1 | . . . . . . 1 . . . Derelict Logs Recovered . | . . . . . . . . . . Drone Launches 3 | . . . . . . 2 . 1 . Drone Recoveries 2 | . . . . . . 2 . . . Exploration | -11 -10 -10 -10 -9 -8 -7 -7 -7 -7 ------------- Run | Jun Mat Min Exi Min Mat Fac Gar Fac Gar Turns Passed 9721 | 81 595 528 1442 83 1493 1193 598 3479 229 Spaces Moved 4600 | 50 259 216 552 33 732 619 299 1732 108 Core 10 | 10 . . . . . . . . . Treads 3792 | 40 259 216 552 33 732 619 299 1042 . Legs . | . . . . . . . . . . Wheels 798 | . . . . . . . . 690 108 Hover . | . . . . . . . . . . Flight . | . . . . . . . . . . Fastest Speed 50 | 50 160 240 240 240 160 160 160 95 110 Average Speed 175 | 138 164 240 240 240 160 161 160 167 112 Slowest Speed 410 | 160 240 240 240 240 160 240 160 410 170 Overloaded Moves . | . . . . . . . . . . Propulsion Burnouts . | . . . . . . . . . . Robots Hopped . | . . . . . . . . . . Cave-ins Triggered . | . . . . . . . . . . Exploration Rate (%) 37 | 4 50 55 92 15 57 19 37 37 13 Regions Visited 9 Branch Regions 3 Pre-discovered Areas 1 | . . . 1 . . . . . . Known Exits Taken 2 | . . . . . . 1 . 1 . Unknown Exits Taken 6 | 1 1 1 1 1 1 . . . . Scrap Searched 1 | . . 1 . . . . . . . Spaces Dug 96 | . . . . . . . . . 96 Terrain Destroyed 147 | . . . . . . . . . 147 Melee . | . . . . . . . . . . Projectile 18 | . . . . . . . . . 18 AOE 129 | . . . . . . . . . 129 Terrain Rammed . | . . . . . . . . . . Walls Destroyed . | . . . . . . . . . . Machines Disabled . | . . . . . . . . . . Actions | -11 -10 -10 -10 -9 -8 -7 -7 -7 -7 --------- Run | Jun Mat Min Exi Min Mat Fac Gar Fac Gar Total 5586 | 59 339 221 660 36 930 738 363 2061 179 Wait 282 | . 22 1 2 3 67 39 18 102 28 Move 4592 | 49 258 215 551 32 731 619 298 1731 108 Hop . | . . . . . . . . . . Pick Up 65 | 3 6 2 4 . 20 7 1 22 . Fast Attach 31 | 6 2 . . . 5 2 . 16 . Attach 32 | . . . . . 2 11 2 16 1 Detach 2 | . . . . . . . . 1 1 Swap 51 | 1 4 . . . 10 16 3 14 3 Drop 41 | . 2 . . . 23 4 . 12 . Fire 364 | . 43 3 5 . 67 40 41 135 30 Melee . | . . . . . . . . . . Ram . | . . . . . . . . . . Kick . | . . . . . . . . . . Crush 10 | . 2 . . 1 5 . . 2 . Escape Stasis 18 | . . . . . . . . 10 8 Rewire 98 | . . . 98 . . . . . . Trap . | . . . . . . . . . . Miscellaneous . | . . . . . . . . . . Route ------- -11/Junkyard -10/Materials -10/Mines (discovered 2 exits: [*Mat] / *Exi) -10/Exiles (discovered 2 exits: [*Min x2]) -9/Mines -8/Materials (discovered 2 exits: *Fac x2) -7/Factory -7/Garrison (discovered 2 exits: *Fac x2) -7/Factory (discovered 2 exits: [*Low] / Gar) -7/Garrison History --------- Turn | Location | Event 6 | -11/Junkyard | Discovered new exit (range 15) 82 | -11/Junkyard | Entered Materials 171 | -10/Materials | Central database locked down 304 | -10/Materials | Build established: Mutant 492 | -10/Materials | Discovered new exit (range 13) 677 | -10/Materials | Entered Mines 686 | -10/Mines | Met a Derelict bent on vengeance 984 | -10/Mines | Discovered new exit (range 8) 1019 | -10/Mines | Received a Rocket Launcher from a helpful Derelict 1196 | -10/Mines | Deemed a non-threat by the Exiles lab entrance 1196 | -10/Mines | Discovered new exit (range 5) 1205 | -10/Mines | Entered Exiles 1205 | -10/Exiles | Found Exiles lab destroyed 1804 | -10/Exiles | Learned location of Zion (-7) 1907 | -10/Exiles | Discovered new exit (range 14) 2354 | -10/Exiles | Opened EX-Vault 2373 | -10/Exiles | Found Supersonic Drone Bay 2502 | -10/Exiles | Build established: Commander-Mutant 2613 | -10/Exiles | Discovered new exit (range 14) 2647 | -10/Exiles | Entered Mines 2647 | -9/Mines | Accompanied by 5 allies 2701 | -9/Mines | Discovered new exit (range 12) 2730 | -9/Mines | Entered Materials 2730 | -8/Materials | Accompanied by 5 allies 2730 | -8/Materials | Evolved 4 slots: Propulsion x1, Utility x2, Weapon x1 3091 | -8/Materials | Discovered new exit (range 15) 3292 | -8/Materials | Build established: Scavenger-Gunner 3822 | -8/Materials | Discovered new exit (range 14) 4223 | -8/Materials | Entered Factory 4223 | -7/Factory | Evolved 2 slots: Utility x2 5191 | -7/Factory | Lost 7 parts (1p2n1u3w) 5416 | -7/Factory | Identified exit to Garrison 5416 | -7/Factory | Entered Garrison 5468 | -7/Garrison | Triggered checkpoint 5538 | -7/Garrison | Heavy support dispatched to Factory 5672 | -7/Garrison | Triggered checkpoint 5709 | -7/Garrison | Discovered new exit (range 10) 5744 | -7/Garrison | Triggered checkpoint 5800 | -7/Garrison | Installed Relay Interface Framework 5832 | -7/Garrison | Garrison Relay disabled 5842 | -7/Garrison | Build established: Hacker-Gunner 5972 | -7/Garrison | Triggered checkpoint 6011 | -7/Garrison | Discovered new exit (range 3) 6014 | -7/Garrison | Entered Factory 6214 | -7/Factory | Discovered new exit (range 30) 6631 | -7/Factory | Build established: Scavenger-Gunner 6827 | -7/Factory | Lost 5 parts (3n1u1w) 6934 | -7/Factory | Garrison activated, responded to threat 6997 | -7/Factory | Identified exit to Garrison 7397 | -7/Factory | Garrison activated, responded to threat 7674 | -7/Factory | Cargo convoy interrupted 8201 | -7/Factory | Garrison activated, responded to threat 8358 | -7/Factory | Core integrity fell below 50% 8379 | -7/Factory | Lost 9 parts (1p2n2u4w) 8724 | -7/Factory | Core integrity fell below 20% 8790 | -7/Factory | Allied Derelicts emerged from ambush trap array 8965 | -7/Factory | Build established: Scavenger-Skirmisher 9493 | -7/Factory | Entered Garrison 9678 | -7/Garrison | Triggered checkpoint 9678 | -7/Garrison | Triggered checkpoint 9722 | -7/Garrison | Destroyed by Y-54 Guardian with Flak Gun Last Messages --------------- 09657_ Field strength at 20. 09658_ Field strength at 10. 09659_ Stasis field depleted. 09677_ C-30 ARC bursts open, deploying its payload. 09677_ S-27 Virus unfolds itself. 09678_ S-27 Virus destroyed. 09678_ Destroyed Lgt. Nuclear Core. 09678_ S-27 Virus destroyed. 09680_ The unstable cave ceiling collapses. 09689_ Wheel destroyed. 09709_ Y-54 Guardian suffers critical hit (Burn). 09709_ Slug penetrates Y-54 Guardian. 09712_ The unstable cave ceiling collapses. 09714_ Slug penetrates G-47 Trooper. 09714_ G-47 Trooper destroyed. 09717_ Slug penetrates Y-54 Guardian. 09717_ Y-54 Guardian destroyed. 09719_ Gauss Rifle destroyed. 09722_ The unstable cave ceiling collapses. 09722_ Rnf. Deuterium Engine destroyed. Map ----- +----------------------------------------------------+ | ?????????????????????????????????????????????????? | | ?????????????????????????????????????????????????? | | ?????????????????????????????????????????????????? | | ?????????????????????????????????????????????????? | | ?????????????????????????????????????????????????? | | ?????????????????????????????????????????????????? | | ?????????????????????????????????????????????????? | | ?????????????????????????????????????????????????? | | ?????????????????????????????????????????????????? | | ?????????????????????????????????????????????????? | | ?????????????????????????# #?????????????????????? | | ?????????????????????????# ###???????????????????? | | ????????????? ???????????# # #???????????????????? | | ???????????? ????????### #???????????????????? | | ????????????# = ??????# #???????????????????? | | ???????????? %% ###### ###?????????????????? | | ????????? =%%%= #?????????????????? | | ????????? *[ ^ #?????????????????? | | ????????? #?????????????????? | | ??????????""###### ### ??????????????????? | | ????????????????????# # % # ##?????????????????? | | ????????????????????#? Y #?????????????????? | | ??????????????????????# %= ##?????????????????? | | ??????????????????????# #?????????????????? | | ??????????????????????# #??????????????????? | | ???????????????????????# @ #???????????????????? | | ???????????????????? # ##???????????????????? | | ???????????????? ??# #????????????????????? | | ???????????????#####????# #????????????????????? | | ????????????????????????# #????????????????????? | | ????????????????????????# #????????????????????? | | ???????????????????###### #????????????????????? | | ??????????????????## # #????????????????????? | | ???????????????#### # # ##???????????????????? | | ???????????????# # ##???????????????????? | | ???????????????# # #???????????????????? | | ?????????? ##################### | | ??????????????## | | ???????????????## ## | | ????????????????### # # | | ??????????????????## # ############ #### | | ???????????????????## # # ###??????????# #??# | | ????????????????????########??????####### #??# | | ??????????????????????????? #??# | | ??????????????????????????? #??# | | ??????????????????????????????#####"""######??# | | ??????????????????????????????????????????????# | | ??????????????????????????????????????????????# | | ??????????????????????????????????????????????# | | ??????????????????????????????????????????????# | +----------------------------------------------------+ Best States ------------- Heat Dissipation 80 Energy Generation 16 Energy Capacity 290 Matter Stores 300 Matter Capacity 300 Sight Range 16 Terrain Scan Density 10 Jamming Range 12 Propulsion Shielding 33 Evasion (%) 41 Targeting Accuracy 16 Recoil Reduction 3 Offensive Hacking 10 Defensive Hacking 10 Relay Coupler Types 1 Relay Coupler Value 20 Item Schematics ----------------- Mak. Hacking Suite | -8/Materials | Scanalyzed Falx | -7/Factory | Hacked Mak. System Restoration Module | -7/Factory | Scanalyzed Hvy. Assault Cannon | -7/Factory | Scanalyzed Arm. Treads | -7/Factory | Scanalyzed Robot Schematics ------------------ M-13 Machinist | -10/Materials | Hacked Fabricated ------------ Nothing Alien Tech Used ----------------- None Achievements -------------- None Challenges ------------ None Game ------ Seed EtherialMetafiberStripper Manual? 0 Play Time 01:12:58 Cumulative 347.4 hours Start 2023.09.21 @ 12:13:41 End 2023.09.21 @ 14:23:33 Sessions 1 Manual Loads 0 Difficulty Rogue Special Mode None Game No. 220 Rogue 217 Adventurer 3 Explorer 0 Win Type - Total 7 Types 6/0/1/0/0/0/0/0/0 Lore% 69 Gallery% 75 Achievement% 66 Wizard Run 0 Options --------- ASCII 0 Keyboard 0 Movement Numpad Keybinds 0 Fullscreen 1 Font 18/SmallcapsGlow Map View 76x50 Tactical HUD 1 Map Filters NONE Filters NONE Steam 1 RUN: 68529d55-c35c-4424-b5ae-e60133b079db